[Event "Titled Tuesday Blitz May 16 Early 2023"]
[White "Cramling Bellon, Anna"]
[Black "Demin, Vladimir"]
[WhiteFideId "32009232"]
[BlackFideId "4167457"]
[WhiteElo "1976"]
[BlackElo "2548"]
[Result "1/2-1/2"]
[Round "01"]
[TimeControl "180+2"]
[Date "2023.05.16"]
[WhiteClock "0:00:03"]
[BlackClock "0:00:05"]

1. d4 {[%clk 0:02:59]}  d5 {[%clk 0:02:58]} 2. c4 {[%clk 0:02:59]}  e6 {[%clk 0:02:58]} 3. Nc3 {[%clk 0:02:56]}  c5 {[%clk 0:02:51]} 4. e3 {[%clk 0:02:41]}  Nf6 {[%clk 0:02:47]} 5. cxd5 {[%clk 0:02:40]}  exd5 {[%clk 0:02:46]} 6. Nf3 {[%clk 0:02:39]}  Nc6 {[%clk 0:02:45]} 7. Be2 {[%clk 0:02:39]}  cxd4 {[%clk 0:02:41]} 8. Nxd4 {[%clk 0:02:35]}  Bd6 {[%clk 0:02:39]} 9. O-O {[%clk 0:02:33]}  O-O {[%clk 0:02:36]} 10. a3 {[%clk 0:02:26]}  Be5 {[%clk 0:02:29]} 11. Nf3 {[%clk 0:02:10]}  Bb8 {[%clk 0:02:27]} 12. b4 {[%clk 0:02:04]}  Qd6 {[%clk 0:02:16]} 13. Nb5 {[%clk 0:01:54]}  Qe7 {[%clk 0:02:14]} 14. Bb2 {[%clk 0:01:52]}  Rd8 {[%clk 0:02:13]} 15. Nbd4 {[%clk 0:01:51]}  Ne5 {[%clk 0:02:06]} 16. Rc1 {[%clk 0:01:41]}  Bg4 {[%clk 0:01:58]} 17. h3 {[%clk 0:01:37]}  Nxf3+ {[%clk 0:01:48]} 18. Nxf3 {[%clk 0:01:38]}  Bxf3 {[%clk 0:01:47]} 19. Bxf3 {[%clk 0:01:39]}  Ne4 {[%clk 0:01:47]} 20. Qd4 {[%clk 0:00:59]}  f6 {[%clk 0:01:41]} 21. Bxe4 {[%clk 0:00:50]}  dxe4 {[%clk 0:01:35]} 22. Qc4+ {[%clk 0:00:45]}  Kh8 {[%clk 0:01:34]} 23. Rfd1 {[%clk 0:00:41]}  Be5 {[%clk 0:01:19]} 24. Bxe5 {[%clk 0:00:37]}  Qxe5 {[%clk 0:01:19]} 25. Rxd8+ {[%clk 0:00:24]}  Rxd8 {[%clk 0:01:20]} 26. Qc8 {[%clk 0:00:23]}  Qd5 {[%clk 0:01:16]} 27. Qg4 {[%clk 0:00:11]}  f5 {[%clk 0:01:02]} 28. Qg5 {[%clk 0:00:08]}  h6 {[%clk 0:01:01]} 29. Qe7 {[%clk 0:00:08]}  Qd7 {[%clk 0:00:58]} 30. Rc7 {[%clk 0:00:07]}  Qxe7 {[%clk 0:00:53]} 31. Rxe7 {[%clk 0:00:07]}  Rd3 {[%clk 0:00:53]} 32. a4 {[%clk 0:00:05]}  Ra3 {[%clk 0:00:51]} 33. a5 {[%clk 0:00:06]}  Ra1+ {[%clk 0:00:46]} 34. Kh2 {[%clk 0:00:06]}  b6 {[%clk 0:00:40]} 35. axb6 {[%clk 0:00:06]}  axb6 {[%clk 0:00:40]} 36. Rb7 {[%clk 0:00:06]}  Ra2 {[%clk 0:00:37]} 37. Kg3 {[%clk 0:00:06]}  g5 {[%clk 0:00:36]} 38. Rxb6 {[%clk 0:00:06]}  Kg7 {[%clk 0:00:35]} 39. f3 {[%clk 0:00:05]}  exf3 {[%clk 0:00:29]} 40. Kxf3 {[%clk 0:00:06]}  Rb2 {[%clk 0:00:27]} 41. g3 {[%clk 0:00:06]}  Rb3 {[%clk 0:00:25]} 42. b5 {[%clk 0:00:06]}  h5 {[%clk 0:00:24]} 43. Rb7+ {[%clk 0:00:07]}  Kf6 {[%clk 0:00:24]} 44. b6 {[%clk 0:00:06]}  Rb2 {[%clk 0:00:21]} 45. e4 {[%clk 0:00:02]}  Rb3+ {[%clk 0:00:19]} 46. Kf2 {[%clk 0:00:02]}  fxe4 {[%clk 0:00:19]} 47. Rh7 {[%clk 0:00:02]}  Kg6 {[%clk 0:00:18]} 48. Rb7 {[%clk 0:00:01]}  Rf3+ {[%clk 0:00:15]} 49. Ke2 {[%clk 0:00:01]}  Rxg3 {[%clk 0:00:16]} 50. Rb8 {[%clk 0:00:01]}  Rb3 {[%clk 0:00:16]} 51. b7 {[%clk 0:00:02]}  Kg7 {[%clk 0:00:15]} 52. Kf2 {[%clk 0:00:01]}  g4 {[%clk 0:00:14]} 53. hxg4 {[%clk 0:00:02]}  hxg4 {[%clk 0:00:14]} 54. Ke2 {[%clk 0:00:02]}  g3 {[%clk 0:00:14]} 55. Re8 {[%clk 0:00:02]}  Rxb7 {[%clk 0:00:12]} 56. Rxe4 {[%clk 0:00:03]}  Rf7 {[%clk 0:00:11]} 57. Rg4+ {[%clk 0:00:03]}  Kh6 {[%clk 0:00:11]} 58. Rxg3 {[%clk 0:00:03]}  Kh5 {[%clk 0:00:11]} 59. Rh3+ {[%clk 0:00:04]}  Kg4 {[%clk 0:00:12]} 60. Re3 {[%clk 0:00:04]}  Ra7 {[%clk 0:00:11]} 61. Kd3 {[%clk 0:00:04]}  Kf4 {[%clk 0:00:10]} 62. Re1 {[%clk 0:00:04]}  Kf3 {[%clk 0:00:07]} 63. Kd4 {[%clk 0:00:04]}  Rd7+ {[%clk 0:00:06]} 64. Kc5 {[%clk 0:00:04]}  Kf2 {[%clk 0:00:07]} 65. Re6 {[%clk 0:00:04]}  Rd8 {[%clk 0:00:07]} 66. Kc6 {[%clk 0:00:04]}  Rd1 {[%clk 0:00:07]} 67. Rd6 {[%clk 0:00:04]}  Rc1+ {[%clk 0:00:07]} 68. Kd7 {[%clk 0:00:05]}  Ke3 {[%clk 0:00:07]} 69. Ke7 {[%clk 0:00:05]}  Kf4 {[%clk 0:00:07]} 70. Ke6 {[%clk 0:00:05]}  Ra1 {[%clk 0:00:06]} 71. Rd4+ {[%clk 0:00:05]}  Ke3 {[%clk 0:00:06]} 72. Rd6 {[%clk 0:00:05]}  Ke4 {[%clk 0:00:06]} 73. Kf6 {[%clk 0:00:05]}  Ra5 {[%clk 0:00:06]} 74. Re6+ {[%clk 0:00:04]}  Kf4 {[%clk 0:00:06]} 75. Rd6 {[%clk 0:00:04]}  Rf5+ {[%clk 0:00:06]} 76. Ke6 {[%clk 0:00:04]}  Rh5 {[%clk 0:00:05]} 77. Kd7 {[%clk 0:00:02]}  Ke5 {[%clk 0:00:05]} 78. Re6+ {[%clk 0:00:02]}  Kd5 {[%clk 0:00:04]} 79. Rg6 {[%clk 0:00:02]}  Rh7+ {[%clk 0:00:04]} 80. Ke8 {[%clk 0:00:02]}  Ke5 {[%clk 0:00:04]} 81. Ra6 {[%clk 0:00:02]}  Rb7 {[%clk 0:00:04]} 82. Kd8 {[%clk 0:00:01]}  Kd5 {[%clk 0:00:04]} 83. Ke8 {[%clk 0:00:01]}  Kc5 {[%clk 0:00:03]} 84. Kf8 {[%clk 0:00:01]}  Rc7 {[%clk 0:00:02]} 85. Rg6 {[%clk 0:00:01]}  Kd5 {[%clk 0:00:02]} 86. Rh6 {[%clk 0:00:02]}  Ke5 {[%clk 0:00:03]} 87. Rg6 {[%clk 0:00:02]}  Kf5 {[%clk 0:00:03]} 88. Ra6 {[%clk 0:00:03]}  Rb7 {[%clk 0:00:03]} 89. Rc6 {[%clk 0:00:02]}  Ra7 {[%clk 0:00:03]} 90. Rb6 {[%clk 0:00:03]}  Kg5 {[%clk 0:00:03]} 91. Rc6 {[%clk 0:00:03]}  Rb7 {[%clk 0:00:03]} 92. Ra6 {[%clk 0:00:04]}  Rc7 {[%clk 0:00:04]} 93. Rb6 {[%clk 0:00:04]}  Kf5 {[%clk 0:00:04]} 94. Ra6 {[%clk 0:00:04]}  Rc8+ {[%clk 0:00:04]} 95. Ke7 {[%clk 0:00:05]}  Rh8 {[%clk 0:00:04]} 96. Ra5+ {[%clk 0:00:05]}  Kg6 {[%clk 0:00:03]} 97. Ra6+ {[%clk 0:00:05]}  Kg7 {[%clk 0:00:03]} 98. Kd7 {[%clk 0:00:05]}  Kf7 {[%clk 0:00:03]} 99. Kc6 {[%clk 0:00:05]}  Rh2 {[%clk 0:00:03]} 100. Kb5 {[%clk 0:00:05]}  Ke7 {[%clk 0:00:03]} 101. Ra7+ {[%clk 0:00:05]}  Kd6 {[%clk 0:00:04]} 102. Rg7 {[%clk 0:00:05]}  Rb2+ {[%clk 0:00:03]} 103. Kc4 {[%clk 0:00:05]}  Rf2 {[%clk 0:00:04]} 104. Rg6+ {[%clk 0:00:05]}  Ke5 {[%clk 0:00:04]} 105. Rg5+ {[%clk 0:00:05]}  Kf6 {[%clk 0:00:04]} 106. Rh5 {[%clk 0:00:03]}  Rf4+ {[%clk 0:00:05]} 107. Kc5 {[%clk 0:00:03]}  Rg4 {[%clk 0:00:05]} 108. Kb5 {[%clk 0:00:03]} 1/2-1/2


[Site "https://www.chess.com"]

[Event "Titled Tuesday Blitz May 16 Early 2023"]
[White "egorchess95"]
[Black "Joubert, Dantelle"]
[BlackFideId "14310813"]
[WhiteElo "2545"]
[BlackElo "1507"]
[Result "1-0"]
[Round "01"]
[TimeControl "180+2"]
[Date "2023.05.16"]
[WhiteClock "0:00:59"]
[BlackClock "0:00:22"]

1. e4 {[%clk 0:02:58]}  c5 {[%clk 0:02:58]} 2. Nf3 {[%clk 0:02:37]}  d6 {[%clk 0:02:50]} 3. d4 {[%clk 0:02:36]}  cxd4 {[%clk 0:02:51]} 4. Qxd4 {[%clk 0:02:36]}  Nf6 {[%clk 0:02:51]} 5. Nc3 {[%clk 0:02:35]}  Nc6 {[%clk 0:02:50]} 6. Bb5 {[%clk 0:02:36]}  Bd7 {[%clk 0:02:51]} 7. Bxc6 {[%clk 0:02:36]}  Bxc6 {[%clk 0:02:50]} 8. Bg5 {[%clk 0:02:37]}  e6 {[%clk 0:02:38]} 9. O-O-O {[%clk 0:02:35]}  Be7 {[%clk 0:02:38]} 10. Qd3 {[%clk 0:02:35]}  Qa5 {[%clk 0:02:35]} 11. Kb1 {[%clk 0:02:35]}  O-O-O {[%clk 0:02:24]} 12. Rhe1 {[%clk 0:02:07]}  h6 {[%clk 0:02:07]} 13. Be3 {[%clk 0:02:07]}  d5 {[%clk 0:02:03]} 14. e5 {[%clk 0:02:03]}  Ne4 {[%clk 0:02:00]} 15. Bd4 {[%clk 0:02:04]}  Bb4 {[%clk 0:01:57]} 16. Re2 {[%clk 0:01:23]}  Nxc3+ {[%clk 0:01:44]} 17. Bxc3 {[%clk 0:01:23]}  Bb5 {[%clk 0:01:43]} 18. Bxb4 {[%clk 0:01:23]}  Qxb4 {[%clk 0:01:42]} 19. Qd2 {[%clk 0:01:23]}  Qg4 {[%clk 0:01:21]} 20. Re3 {[%clk 0:01:14]}  g5 {[%clk 0:01:05]} 21. Nd4 {[%clk 0:01:08]}  Ba6 {[%clk 0:00:57]} 22. f3 {[%clk 0:01:08]}  Qh5 {[%clk 0:00:54]} 23. Qb4 {[%clk 0:01:07]}  Rd7 {[%clk 0:00:49]} 24. Rc3+ {[%clk 0:01:06]}  Kb8 {[%clk 0:00:49]} 25. h3 {[%clk 0:01:01]}  Qg6 {[%clk 0:00:43]} 26. Nb3 {[%clk 0:01:00]}  Bc4 {[%clk 0:00:29]} 27. Rxc4 {[%clk 0:00:59]}  dxc4 {[%clk 0:00:22]} 28. Rxd7 {[%clk 0:00:59]} 1-0


[Site "https://www.chess.com"]

[Event "Titled Tuesday Blitz May 16 Early 2023"]
[White "Maranhao,Jose Renato Ruiz"]
[Black "Romkachess"]
[WhiteFideId "2135175"]
[WhiteElo "1970"]
[BlackElo "2544"]
[Result "0-1"]
[Round "01"]
[TimeControl "180+2"]
[Date "2023.05.16"]
[WhiteClock "0:00:00"]
[BlackClock "0:02:05"]

1. e4 {[%clk 0:02:28]}  c5 {[%clk 0:02:59]} 2. Nf3 {[%clk 0:02:11]}  d6 {[%clk 0:02:56]} 3. d4 {[%clk 0:02:08]}  cxd4 {[%clk 0:02:57]} 4. Nxd4 {[%clk 0:02:09]}  Nf6 {[%clk 0:02:58]} 5. Nc3 {[%clk 0:02:09]}  a6 {[%clk 0:02:58]} 6. Bd3 {[%clk 0:02:03]}  e5 {[%clk 0:02:59]} 7. Nde2 {[%clk 0:01:43]}  Be7 {[%clk 0:02:58]} 8. O-O {[%clk 0:01:37]}  O-O {[%clk 0:02:58]} 9. Be3 {[%clk 0:01:29]}  b5 {[%clk 0:02:56]} 10. f3 {[%clk 0:01:27]}  Bb7 {[%clk 0:02:56]} 11. Ng3 {[%clk 0:01:24]}  Re8 {[%clk 0:02:51]} 12. a4 {[%clk 0:01:17]}  b4 {[%clk 0:02:51]} 13. Nd5 {[%clk 0:01:17]}  Nxd5 {[%clk 0:02:43]} 14. exd5 {[%clk 0:01:18]}  g6 {[%clk 0:02:44]} 15. a5 {[%clk 0:00:49]}  Nd7 {[%clk 0:02:41]} 16. b3 {[%clk 0:00:28]}  Bg5 {[%clk 0:02:41]} 17. Bxg5 {[%clk 0:00:19]}  Qxg5 {[%clk 0:02:41]} 18. Ne4 {[%clk 0:00:15]}  Qe7 {[%clk 0:02:42]} 19. Bc4 {[%clk 0:00:15]}  f5 {[%clk 0:02:42]} 20. Nf2 {[%clk 0:00:10]}  Nc5 {[%clk 0:02:34]} 21. Qd2 {[%clk 0:00:10]}  e4 {[%clk 0:02:31]} 22. fxe4 {[%clk 0:00:09]}  fxe4 {[%clk 0:02:30]} 23. Qxb4 {[%clk 0:00:08]}  e3 {[%clk 0:02:24]} 24. Nd3 {[%clk 0:00:07]}  Ne4 {[%clk 0:02:22]} 25. Rae1 {[%clk 0:00:05]}  Rab8 {[%clk 0:02:08]} 26. Nf4 {[%clk 0:00:00]}  Nd2 {[%clk 0:02:05]} 0-1


[Site "https://www.chess.com"]

[Event "Titled Tuesday Blitz May 16 Early 2023"]
[White "Kuznetsov, Mikhail"]
[Black "Castillo Pena, Patricia Evarista"]
[WhiteFideId "4117190"]
[BlackFideId "6412106"]
[WhiteElo "1981"]
[BlackElo "1919"]
[Result "1-0"]
[Round "01"]
[TimeControl "180+2"]
[Date "2023.05.16"]
[WhiteClock "0:02:07"]
[BlackClock "0:00:24"]

1. Nf3 {[%clk 0:02:55]}  d5 {[%clk 0:02:58]} 2. g3 {[%clk 0:02:54]}  Nf6 {[%clk 0:02:58]} 3. Bg2 {[%clk 0:02:55]}  c6 {[%clk 0:02:56]} 4. O-O {[%clk 0:02:55]}  e6 {[%clk 0:02:56]} 5. d3 {[%clk 0:02:56]}  Nbd7 {[%clk 0:02:55]} 6. Nbd2 {[%clk 0:02:56]}  e5 {[%clk 0:02:26]} 7. e4 {[%clk 0:02:55]}  dxe4 {[%clk 0:02:18]} 8. dxe4 {[%clk 0:02:52]}  Bc5 {[%clk 0:02:12]} 9. Qe2 {[%clk 0:02:49]}  O-O {[%clk 0:02:10]} 10. h3 {[%clk 0:02:43]}  Qe7 {[%clk 0:02:09]} 11. Rd1 {[%clk 0:02:41]}  Rd8 {[%clk 0:02:07]} 12. Nc4 {[%clk 0:02:40]}  b5 {[%clk 0:01:57]} 13. Ncxe5 {[%clk 0:02:31]}  Nxe5 {[%clk 0:01:49]} 14. Rxd8+ {[%clk 0:02:30]}  Qxd8 {[%clk 0:01:30]} 15. Nxe5 {[%clk 0:02:28]}  Bb7 {[%clk 0:01:22]} 16. Nd3 {[%clk 0:02:26]}  Bb6 {[%clk 0:01:21]} 17. Be3 {[%clk 0:02:23]}  Bxe3 {[%clk 0:01:10]} 18. Qxe3 {[%clk 0:02:24]}  Qb6 {[%clk 0:00:55]} 19. Nc5 {[%clk 0:02:15]}  Rb8 {[%clk 0:00:47]} 20. Rd1 {[%clk 0:02:11]}  h6 {[%clk 0:00:44]} 21. b4 {[%clk 0:02:10]}  Rd8 {[%clk 0:00:24]} 22. Rxd8+ {[%clk 0:02:07]} 1-0


[Site "https://www.chess.com"]

[Event "Titled Tuesday Blitz May 16 Early 2023"]
[White "Vargas, Mauricio"]
[Black "Dixit, Nikhil"]
[WhiteFideId "4404572"]
[BlackFideId "5059534"]
[WhiteElo "1986"]
[BlackElo "2207"]
[Result "0-1"]
[Round "01"]
[TimeControl "180+2"]
[Date "2023.05.16"]
[WhiteClock "0:00:00"]
[BlackClock "0:00:47"]

1. e4 {[%clk 0:03:00]}  c5 {[%clk 0:02:53]} 2. f4 {[%clk 0:02:57]}  g6 {[%clk 0:02:49]} 3. Nf3 {[%clk 0:02:55]}  Bg7 {[%clk 0:02:47]} 4. Nc3 {[%clk 0:02:56]}  Nc6 {[%clk 0:02:46]} 5. Bb5 {[%clk 0:02:56]}  Nd4 {[%clk 0:02:40]} 6. O-O {[%clk 0:02:53]}  Nxb5 {[%clk 0:02:38]} 7. Nxb5 {[%clk 0:02:52]}  a6 {[%clk 0:02:35]} 8. Nc3 {[%clk 0:02:51]}  b5 {[%clk 0:02:35]} 9. Nd5 {[%clk 0:02:50]}  e6 {[%clk 0:02:32]} 10. Ne3 {[%clk 0:02:48]}  Ne7 {[%clk 0:02:32]} 11. d3 {[%clk 0:02:48]}  f5 {[%clk 0:02:31]} 12. Qe1 {[%clk 0:02:39]}  O-O {[%clk 0:02:27]} 13. c3 {[%clk 0:02:23]}  Bb7 {[%clk 0:02:24]} 14. exf5 {[%clk 0:02:14]}  Nxf5 {[%clk 0:02:21]} 15. Ng4 {[%clk 0:02:03]}  Bxf3 {[%clk 0:01:45]} 16. Rxf3 {[%clk 0:02:00]}  b4 {[%clk 0:01:38]} 17. Bd2 {[%clk 0:01:56]}  bxc3 {[%clk 0:01:37]} 18. bxc3 {[%clk 0:01:54]}  Rb8 {[%clk 0:01:38]} 19. Ne5 {[%clk 0:01:45]}  Rb2 {[%clk 0:01:33]} 20. g4 {[%clk 0:01:33]}  Nh4 {[%clk 0:01:24]} 21. Rh3 {[%clk 0:01:25]}  Bxe5 {[%clk 0:01:22]} 22. Rxh4 {[%clk 0:00:54]}  Rxd2 {[%clk 0:01:14]} 23. fxe5 {[%clk 0:00:40]}  Rff2 {[%clk 0:01:12]} 24. Rh3 {[%clk 0:00:32]}  Rfe2 {[%clk 0:00:53]} 25. Qf1 {[%clk 0:00:00]}  Qg5 {[%clk 0:00:47]} 0-1


[Site "https://www.chess.com"]

[Event "Titled Tuesday Blitz May 16 Early 2023"]
[White "Nakamura, Hikaru"]
[Black "Kvaloy, Aksel Bu"]
[WhiteFideId "2016192"]
[BlackFideId "1528815"]
[WhiteElo "2885"]
[BlackElo "2242"]
[Result "1-0"]
[Round "02"]
[TimeControl "180+2"]
[Date "2023.05.16"]
[WhiteClock "0:01:46"]
[BlackClock "0:01:14"]

1. Nf3 {[%clk 0:03:00]}  d5 {[%clk 0:02:59]} 2. e3 {[%clk 0:03:00]}  Nf6 {[%clk 0:02:57]} 3. c4 {[%clk 0:02:41]}  e6 {[%clk 0:02:54]} 4. Nc3 {[%clk 0:02:41]}  c5 {[%clk 0:02:54]} 5. cxd5 {[%clk 0:02:36]}  exd5 {[%clk 0:02:54]} 6. d4 {[%clk 0:02:37]}  Nc6 {[%clk 0:02:52]} 7. Bb5 {[%clk 0:02:32]}  a6 {[%clk 0:02:42]} 8. Bxc6+ {[%clk 0:02:31]}  bxc6 {[%clk 0:02:43]} 9. O-O {[%clk 0:02:29]}  cxd4 {[%clk 0:02:42]} 10. exd4 {[%clk 0:02:27]}  Be7 {[%clk 0:02:37]} 11. Ne5 {[%clk 0:02:27]}  Bd7 {[%clk 0:02:33]} 12. Bg5 {[%clk 0:02:24]}  O-O {[%clk 0:02:31]} 13. Na4 {[%clk 0:02:24]}  h6 {[%clk 0:02:30]} 14. Bxf6 {[%clk 0:02:24]}  Bxf6 {[%clk 0:02:30]} 15. Nxd7 {[%clk 0:02:24]}  Qxd7 {[%clk 0:02:30]} 16. Nb6 {[%clk 0:02:25]}  Qa7 {[%clk 0:02:24]} 17. Nxa8 {[%clk 0:02:25]}  Rxa8 {[%clk 0:02:24]} 18. Rc1 {[%clk 0:02:25]}  Rb8 {[%clk 0:02:19]} 19. b3 {[%clk 0:02:11]}  Qb6 {[%clk 0:02:01]} 20. Qc2 {[%clk 0:02:11]}  Rc8 {[%clk 0:01:58]} 21. Qf5 {[%clk 0:02:09]}  Rc7 {[%clk 0:01:56]} 22. Rfe1 {[%clk 0:02:07]}  Kf8 {[%clk 0:01:47]} 23. Qh7 {[%clk 0:01:55]}  g6 {[%clk 0:01:46]} 24. Qxh6+ {[%clk 0:01:55]}  Bg7 {[%clk 0:01:47]} 25. Qh4 {[%clk 0:01:55]}  Rc8 {[%clk 0:01:42]} 26. Qe7+ {[%clk 0:01:54]}  Kg8 {[%clk 0:01:41]} 27. Qd7 {[%clk 0:01:54]}  Rf8 {[%clk 0:01:34]} 28. Qxc6 {[%clk 0:01:53]}  Qxd4 {[%clk 0:01:32]} 29. Red1 {[%clk 0:01:53]}  Qb2 {[%clk 0:01:31]} 30. Rc2 {[%clk 0:01:53]}  Qe5 {[%clk 0:01:28]} 31. Qxd5 {[%clk 0:01:53]}  Qe7 {[%clk 0:01:25]} 32. g3 {[%clk 0:01:52]}  Re8 {[%clk 0:01:25]} 33. Qf3 {[%clk 0:01:48]}  a5 {[%clk 0:01:22]} 34. Rcd2 {[%clk 0:01:48]}  Qe6 {[%clk 0:01:19]} 35. Rd3 {[%clk 0:01:47]}  a4 {[%clk 0:01:19]} 36. Re3 {[%clk 0:01:47]}  Qc8 {[%clk 0:01:14]} 37. Rxe8+ {[%clk 0:01:48]}  Qxe8 {[%clk 0:01:15]} 38. Qd3 {[%clk 0:01:47]}  axb3 {[%clk 0:01:15]} 39. Qd8 {[%clk 0:01:47]}  Kf8 {[%clk 0:01:14]} 40. axb3 {[%clk 0:01:46]} 1-0


[Site "https://www.chess.com"]

[Event "Titled Tuesday Blitz May 16 Early 2023"]
[White "Firouzja, Alireza"]
[Black "Martinez Ramirez, Lennis"]
[WhiteFideId "12573981"]
[BlackFideId "3509079"]
[WhiteElo "2904"]
[BlackElo "2410"]
[Result "1-0"]
[Round "02"]
[TimeControl "180+2"]
[Date "2023.05.16"]
[WhiteClock "0:00:40"]
[BlackClock "0:00:11"]

1. d4 {[%clk 0:02:59]}  d5 {[%clk 0:02:59]} 2. c4 {[%clk 0:02:56]}  e6 {[%clk 0:02:59]} 3. Nc3 {[%clk 0:02:53]}  Nf6 {[%clk 0:02:59]} 4. cxd5 {[%clk 0:02:53]}  exd5 {[%clk 0:02:59]} 5. Bg5 {[%clk 0:02:53]}  Be7 {[%clk 0:03:00]} 6. e3 {[%clk 0:02:47]}  h6 {[%clk 0:02:59]} 7. Bh4 {[%clk 0:02:46]}  O-O {[%clk 0:02:56]} 8. Bd3 {[%clk 0:02:47]}  Re8 {[%clk 0:02:53]} 9. Nge2 {[%clk 0:02:41]}  c6 {[%clk 0:02:48]} 10. O-O {[%clk 0:02:33]}  Nh5 {[%clk 0:02:45]} 11. Bxe7 {[%clk 0:02:32]}  Qxe7 {[%clk 0:02:45]} 12. Qd2 {[%clk 0:02:30]}  Nd7 {[%clk 0:02:37]} 13. Rae1 {[%clk 0:02:22]}  Nb6 {[%clk 0:02:24]} 14. b3 {[%clk 0:02:00]}  Qg5 {[%clk 0:02:11]} 15. Nf4 {[%clk 0:01:29]}  Bf5 {[%clk 0:01:48]} 16. h4 {[%clk 0:01:24]}  Nxf4 {[%clk 0:01:09]} 17. hxg5 {[%clk 0:01:20]}  Nxd3 {[%clk 0:01:09]} 18. Rd1 {[%clk 0:01:13]}  hxg5 {[%clk 0:01:09]} 19. f3 {[%clk 0:01:00]}  Nb4 {[%clk 0:01:04]} 20. e4 {[%clk 0:01:00]}  dxe4 {[%clk 0:01:04]} 21. fxe4 {[%clk 0:01:01]}  Bxe4 {[%clk 0:01:04]} 22. Nxe4 {[%clk 0:01:01]}  N4d5 {[%clk 0:00:54]} 23. Nd6 {[%clk 0:00:58]}  Re6 {[%clk 0:00:48]} 24. Nxf7 {[%clk 0:00:49]}  Ne3 {[%clk 0:00:45]} 25. Nxg5 {[%clk 0:00:44]}  Nxf1 {[%clk 0:00:46]} 26. Qd3 {[%clk 0:00:41]}  Rh6 {[%clk 0:00:11]} 27. Rxf1 {[%clk 0:00:40]} 1-0


[Site "https://www.chess.com"]

[Event "Titled Tuesday Blitz May 16 Early 2023"]
[White "Batchuluun, Tsegmed"]
[Black "Dubov, Daniil"]
[WhiteFideId "4900847"]
[BlackFideId "24126055"]
[WhiteElo "2386"]
[BlackElo "2793"]
[Result "0-1"]
[Round "02"]
[TimeControl "180+2"]
[Date "2023.05.16"]
[WhiteClock "0:00:00"]
[BlackClock "0:00:29"]

1. d4 {[%clk 0:03:00]}  Nf6 {[%clk 0:02:59]} 2. c4 {[%clk 0:03:00]}  e6 {[%clk 0:02:59]} 3. Nf3 {[%clk 0:02:59]}  d5 {[%clk 0:02:59]} 4. g3 {[%clk 0:02:59]}  Be7 {[%clk 0:02:58]} 5. Bg2 {[%clk 0:02:59]}  O-O {[%clk 0:02:59]} 6. O-O {[%clk 0:02:58]}  dxc4 {[%clk 0:03:00]} 7. Qc2 {[%clk 0:02:58]}  b5 {[%clk 0:03:01]} 8. a4 {[%clk 0:02:46]}  b4 {[%clk 0:03:01]} 9. Nfd2 {[%clk 0:02:40]}  Nd5 {[%clk 0:02:59]} 10. Nxc4 {[%clk 0:02:39]}  c5 {[%clk 0:02:59]} 11. dxc5 {[%clk 0:02:29]}  Ba6 {[%clk 0:02:59]} 12. Nbd2 {[%clk 0:02:16]}  Bxc5 {[%clk 0:02:58]} 13. Nb3 {[%clk 0:02:11]}  Nd7 {[%clk 0:02:57]} 14. Nxc5 {[%clk 0:02:09]}  Nxc5 {[%clk 0:02:58]} 15. Ne3 {[%clk 0:02:03]}  Rc8 {[%clk 0:02:53]} 16. Nxd5 {[%clk 0:02:01]}  exd5 {[%clk 0:02:54]} 17. Qd1 {[%clk 0:01:56]}  Re8 {[%clk 0:02:31]} 18. Re1 {[%clk 0:01:54]}  d4 {[%clk 0:02:31]} 19. Bd2 {[%clk 0:01:39]}  Qa5 {[%clk 0:02:25]} 20. b3 {[%clk 0:01:32]}  Ne4 {[%clk 0:02:19]} 21. Bxe4 {[%clk 0:01:23]}  Rxe4 {[%clk 0:02:20]} 22. f3 {[%clk 0:01:20]}  Re6 {[%clk 0:02:17]} 23. Rc1 {[%clk 0:01:18]}  Rce8 {[%clk 0:02:16]} 24. Bf4 {[%clk 0:01:08]}  g5 {[%clk 0:01:33]} 25. Bc7 {[%clk 0:01:01]}  Qd5 {[%clk 0:01:34]} 26. e4 {[%clk 0:00:52]}  Qd7 {[%clk 0:01:34]} 27. Qd2 {[%clk 0:00:49]}  h6 {[%clk 0:01:26]} 28. Qxb4 {[%clk 0:00:49]}  d3 {[%clk 0:01:24]} 29. Ba5 {[%clk 0:00:48]}  g4 {[%clk 0:01:12]} 30. fxg4 {[%clk 0:00:47]}  Re5 {[%clk 0:01:06]} 31. Qd2 {[%clk 0:00:31]}  Qd4+ {[%clk 0:00:57]} 32. Qf2 {[%clk 0:00:29]}  Qxf2+ {[%clk 0:00:55]} 33. Kxf2 {[%clk 0:00:28]}  Rxa5 {[%clk 0:00:56]} 34. Ke3 {[%clk 0:00:21]}  Rae5 {[%clk 0:00:54]} 35. Kd2 {[%clk 0:00:18]}  Rxe4 {[%clk 0:00:42]} 36. Rxe4 {[%clk 0:00:19]}  Rxe4 {[%clk 0:00:42]} 37. Rc6 {[%clk 0:00:15]}  Re2+ {[%clk 0:00:42]} 38. Kd1 {[%clk 0:00:15]}  Bb7 {[%clk 0:00:41]} 39. Rxh6 {[%clk 0:00:09]}  Bf3 {[%clk 0:00:37]} 40. Rf6 {[%clk 0:00:07]}  Bd5 {[%clk 0:00:31]} 41. Rd6 {[%clk 0:00:04]}  Bxb3+ {[%clk 0:00:31]} 42. Kc1 {[%clk 0:00:05]}  Rc2+ {[%clk 0:00:29]} 43. Kb1 {[%clk 0:00:00]}  Rxh2 {[%clk 0:00:29]} 0-1


[Site "https://www.chess.com"]